Cogmind - Beta 15 @@@ ROGUE MODE // 2025.08.11 @ 17:30:32 Player: winnking222 Result: Destroyed by G-34 Mercenary with Small Laser Performance ------------- Evolutions (0) 0 Regions Visited (4) 800 Robots Destroyed (29) 145 Value Destroyed (739) 739 Prototype IDs (23) 460 Alien Tech Used (0) 0 Bonus (307) 307 TOTAL SCORE: 2451 Bonus ------- Follower Combat Kills 7 Aligned with FarCom 300 Cogmind --------- Core Integrity 0/250 Matter 260/300 Energy 100/100 System Corruption 0% Temperature Cool (33) Movement Core (800) Ox15 Location -9/Mines Parts ------- > --- POWER (1) -------- (None) > --- PROPULSION (2) --- (None) > --- UTILITY (2) ------ High-capacity Storage Unit Light Armor Plating > --- WEAPON (2) ------- Assault Rifle Light Assault Rifle > --- INVENTORY (20) --- Compact Wheel Improved Heat Sink Large Storage Unit Large Battery (200) High-capacity Matter Pod (133) Seismic Detector Latent Energy Streamer Rocket Launcher Peak State ------------ > --- POWER ------------ Ion Engine > --- PROPULSION ------- Light Treads Light Treads > --- UTILITY ---------- High-capacity Storage Unit Light Armor Plating > --- WEAPON ----------- Light Assault Rifle Heavy Assault Rifle > --- INVENTORY -------- Compact Wheel Improved Heat Sink Large Storage Unit Lightpack 2.0 High-capacity Matter Pod Seismic Detector Light Armor Plating Latent Energy Streamer Assault Rifle Rocket Launcher [Rating: 13] Favorites ----------- Power Ion Engine Engine Ion Engine Propulsion Light Treads Treads Light Treads Leg Aluminum Leg Utility Small Storage Unit Device Seismic Detector Storage Small Storage Unit Processor Targeting Computer Protection Light Armor Plating Weapon Light Assault Rifle Ballistic Gun Light Assault Rifle Launcher Grenade Launcher Build | -11 -10 -10 -10 -9 ------- Run | Yrd Mat Min Exi Min Slots Evolved . | . . . . . Power . | . . . . . Propulsion . | . . . . . Utility . | . . . . . Weapon . | . . . . . Parts Attached 23 | 7 6 5 5 . Power 3 | 1 2 . . . Engine 3 | 1 2 . . . Core . | . . . . . Reactor . | . . . . . Propulsion 6 | 2 2 2 . . Treads 4 | 2 . 2 . . Leg 2 | . 2 . . . Wheel . | . . . . . Hover . | . . . . . Flight . | . . . . . Utility 8 | 2 1 . 5 . Device 1 | 1 . . . . Storage 4 | 1 . . 3 . Processor 1 | . 1 . . . Hackware . | . . . . . Protection 2 | . . . 2 . Artifact . | . . . . . Weapon 6 | 2 1 3 . . Energy Gun . | . . . . . Energy Cannon . | . . . . . Ballistic Gun 5 | 2 . 3 . . Ballistic Cannon . | . . . . . Launcher 1 | . 1 . . . Special Weapon . | . . . . . Impact Weapon . | . . . . . Slashing Weapon . | . . . . . Piercing Weapon . | . . . . . Special Melee Weapon . | . . . . . Unidentified Prototypes . | . . . . . Parts Lost 7 | . 2 . . 5 Power 2 | . 1 . . 1 Propulsion 2 | . . . . 2 Utility 1 | . . . . 1 Weapon 2 | . 1 . . 1 Highest Loss Streak 5 | . 2 . . 5 To Critical Strikes . | . . . . . Average Backups 7 | 3 6 7 7 9 Power . | . 1 . . . Propulsion 1 | 2 2 1 . 1 Utility 4 | . 3 5 4 5 Weapon 1 | . . 1 2 2 Tool/Special . | . . . . . Unused Backups 8 | . . 1 1 6 Power . | . . . . . Propulsion 1 | . . . . 1 Utility 5 | . . 1 1 3 Weapon 2 | . . . . 2 Tool/Special . | . . . . . Average Slot Usage (%) 99 | . 98 99 99 91 Engine 13 | . 13 14 14 12 Treads 22 | . 14 21 28 24 Leg 5 | . 13 5 . . Storage 13 | . 14 14 13 14 Processor 8 | . 10 14 4 . Protection 3 | . . . 9 14 Ballistic Gun 26 | . 26 25 28 26 Launcher 1 | . . 2 . . Peak Build Rating 13 | 7 8 9 13 10 Average Rating 8 | 5 7 8 9 8 On Entrance 6 | . 7 7 9 10 Naked Turns . | . . . . . Heaviest Build 52 | 14 14 15 52 52 Greatest Support 40 | 40 40 40 40 40 Greatest Overweight (x) 1 | . . . 1 1 Average Overweight (x) . | . . . . 1 Largest Inventory Capacity 25 | 8 8 8 25 20 Average Capacity 11 | 7 8 8 16 20 Most Carried 12 | 6 8 8 12 10 Average Carried 7 | 3 6 7 7 9 Final Capacity 20 | 8 8 8 20 20 Final Carried 10 | 5 7 8 10 8 Class Distribution -------------------- 63% | Scavenger-Mutant 36% | Mutant Dominant Class ---------------- Mutant | -10/Materials Scavenger-Mutant | -10/Mines Scavenger-Mutant | -10/Exiles Mutant | -9/Mines Resources | -11 -10 -10 -10 -9 ----------- Run | Yrd Mat Min Exi Min Matter Collected 881 | 331 290 192 68 . Remotely . | . . . . . Salvage Created 883 | 79 466 338 . . Parts 58 | 11 26 21 . . Haulers Intercepted . | . . . . . Recyclers Shooed . | . . . . . Parts Field Recycled . | . . . . . Retrieved Matter . | . . . . . Parts Self-Destructed . | . . . . . Prevented . | . . . . . Kills | -11 -10 -10 -10 -9 ------- Run | Yrd Mat Min Exi Min Combat Hostiles Destroyed 22 | . 11 11 . . Guns 20 | . 9 11 . . AOE 2 | . 2 . . . Classes Destroyed 6 | 1 3 2 . . Worker 1 | . . 1 . . Builder 1 | . 1 . . . Tunneler 4 | 4 . . . . Mechanic 1 | . 1 . . . Swarmer 6 | . . 6 . . Grunt 16 | . 11 5 . . Best Kill Streak 4 | 3 4 4 . . Combat Bots Only 4 | . 2 4 . . Max Kills in Single Turn 2 | 1 2 2 . . Gunslinging . | . . . . . Exploded 2 | . 2 . . . Melee . | . . . . . Uniques/NPCs Destroyed . | . . . . . Combat | -11 -10 -10 -10 -9 -------- Run | Yrd Mat Min Exi Min Hostile Shots Fired 167 | . 85 45 . 37 Missed 43 | . 23 11 . 9 Hits 124 | . 62 34 . 28 Projectile 124 | . 62 34 . 28 Critical Strikes 2 | . . 1 . 1 Damage Taken 1514 | . 762 368 . 384 Core 256 | . 155 41 . 60 Absorbed by Shields . | . . . . . Core Remaining (%) 100 | 100 . . . . Volleys Fired 108 | 16 54 27 . 11 Largest 2 | 2 2 2 . 2 Hottest 50 | 40 50 43 . 43 Shots Fired 214 | 32 108 52 . 22 Gun 211 | 32 105 52 . 22 Cannon . | . . . . . Launcher 3 | . 3 . . . Special . | . . . . . Kinetic 211 | 32 105 52 . 22 Thermal . | . . . . . Explosive 3 | . 3 . . . Electromagnetic . | . . . . . Robot Hit Streak 14 | 5 14 9 . 6 Robot Miss Streak 8 | 3 8 4 . 2 Penetration Max . | . . . . . Secondary Targets 2 | . 1 1 . . Max Gunslinging Chain 1 | . 1 1 . . Shots Hit Robots 126 | 19 64 30 . 13 Core Hits 56 | 6 31 17 . 2 Critical Kills . | . . . . . Critical Parts Destroyed . | . . . . . Critical Strikes . | . . . . . Melee Attacks . | . . . . . Impact . | . . . . . Slashing . | . . . . . Piercing . | . . . . . Sneak Attacks . | . . . . . Combat Hostiles . | . . . . . Follow-up Attacks . | . . . . . Damage Inflicted 1579 | 193 847 399 . 140 Guns 1406 | 193 678 395 . 140 Cannons . | . . . . . Explosions 169 | . 169 . . . Melee . | . . . . . Ramming 4 | . . 4 . . Kinetic 1406 | 193 678 395 . 140 Thermal . | . . . . . Explosive 169 | . 169 . . . Electromagnetic . | . . . . . Impact . | . . . . . Slashing . | . . . . . Piercing . | . . . . . Highest Corruption . | . . . . . Average Corruption . | . . . . . Corruption Purged . | . . . . . Corruption Blocked . | . . . . . Overload Shots . | . . . . . Overflow Damage . | . . . . . Projectiles . | . . . . . Explosions . | . . . . . Melee . | . . . . . Knockbacks . | . . . . . Impact . | . . . . . Kinetic . | . . . . . Secondary . | . . . . . Self-Inflicted Damage 40 | . . 40 . . Shots 1 | . . 1 . . Rammed 3 | . . 3 . . Targets Rammed 3 | . . 3 . . Kicked . | . . . . . Crushed . | . . . . . Highest Temperature 62 | . 18 22 . 62 Average Temperature 11 | . 8 6 . 23 Received Heat Transfer 726 | . 429 66 . 231 Siege Activations . | . . . . . Martial Activations . | . . . . . Shielding Activations . | . . . . . Robots Disrupted . | . . . . . Combat Hostiles . | . . . . . Robots Corrupted . | . . . . . Combat Hostiles . | . . . . . Parts Fried . | . . . . . Impact Corruptions . | . . . . . Robots Melted . | . . . . . Combat Hostiles . | . . . . . Parts Melted . | . . . . . Heat Transferred . | . . . . . Parts Sabotaged . | . . . . . Parts Stolen . | . . . . . Parts Stripped . | . . . . . Power Chain Reactions . | . . . . . Alert | -11 -10 -10 -10 -9 ------- Run | Yrd Mat Min Exi Min Maximum Alert Level . | . . . . . Low Security (%) 100 | 100 100 100 . 100 Level 1 . | . . . . . Level 2 . | . . . . . Level 3 . | . . . . . Level 4 . | . . . . . Level 5 . | . . . . . High Security . | . . . . . Max Security . | . . . . . Peak Influence 172 | 10 140 172 . . Initial 45 | . . 45 . . Average 59 | 1 71 64 . . Influence Increases 775 | 20 413 342 . . Destroy 0b10 Robot/C 460 | . 220 240 . . Destroy 0b10 Robot/NC 35 | 20 10 5 . . Destroy Leader 100 | . 50 50 . . Allied During Kill 7 | . . 7 . . Successful Hack 8 | . 8 . . . Disable Machine 15 | . . 15 . . Destroy Structure 30 | . 20 10 . . Lose Combat Pursuer 120 | . 105 15 . . Influence Decreases 775 | 20 295 312 148 . Entered New Map 221 | . . 73 148 . Time Decay 534 | 20 275 239 . . Lost Part 20 | . 20 . . . Squads Dispatched 3 | . 3 . . . Investigation 2 | . 2 . . . Extermination . | . . . . . Reinforcement 1 | . 1 . . . Assault . | . . . . . Garrison . | . . . . . Intercept . | . . . . . Searches Triggered . | . . . . . Construction Impeded . | . . . . . Haulers Reinforced . | . . . . . Active Scanning Responses . | . . . . . Cargo Convoy Interrupts . | . . . . . Stealth | -11 -10 -10 -10 -9 --------- Run | Yrd Mat Min Exi Min Distress Signals 2 | . 2 . . . Communications Jammed . | . . . . . Distress Signals . | . . . . . Times Spotted 41 | . 23 15 . 3 Peak Tracking Total 7 | . 7 5 . 3 Tactical Retreats 4 | . 3 1 . . Traps | -11 -10 -10 -10 -9 ------- Run | Yrd Mat Min Exi Min Traps Triggered 3 | . 3 . . . Indirectly . | . . . . . Trap Hack Attempts . | . . . . . Triggered . | . . . . . Disarmed . | . . . . . Reprogrammed . | . . . . . Reused . | . . . . . Traps Extracted . | . . . . . Installed . | . . . . . Triggered . | . . . . . Machines | -11 -10 -10 -10 -9 ---------- Run | Yrd Mat Min Exi Min Machines Disabled 1 | . . 1 . . Max in Single Turn 1 | . . 1 . . Machines Repaired . | . . . . . Machines Dismantled . | . . . . . Machines Sabotaged . | . . . . . Overloaded Fab Kills . | . . . . . Hacking | -11 -10 -10 -10 -9 --------- Run | Yrd Mat Min Exi Min Machines Accessed 6 | . 4 . 2 . Terminals 3 | . 3 . . . Fabricators . | . . . . . Repair Stations . | . . . . . Recycling Units 1 | . 1 . . . Scanalyzers . | . . . . . Garrison Access . | . . . . . Total Hacks 17 | . 12 . 5 . Successful 14 | . 9 . 5 . Failed 3 | . 3 . . . Catastrophic . | . . . . . Database Lockouts . | . . . . . Manual 12 | . 11 . 1 . Terminals 9 | . 9 . . . Fabricators . | . . . . . Repair Stations . | . . . . . Recycling Units 3 | . 3 . . . Scanalyzers . | . . . . . Garrison Access . | . . . . . Terminal Hacks 6 | . 1 . 5 . Record 4 | . . . 4 . Locate Traps 1 | . 1 . . . Proto ID Catalog 1 | . . . 1 . Fabricator Hacks . | . . . . . Repair Station Hacks . | . . . . . Recycling Unit Hacks . | . . . . . Scanalyzer . | . . . . . Garrison Access Hacks . | . . . . . Unauthorized Hacks 5 | . 5 . . . Terminals 5 | . 5 . . . Botnet 2 | . 2 . . . Skim 3 | . 3 . . . Fabricators . | . . . . . Repair Stations . | . . . . . Recycling Units . | . . . . . Scanalyzers . | . . . . . Garrison Access . | . . . . . Data Cores Recovered . | . . . . . Used . | . . . . . Hacking Detections 3 | . 3 . . . Full Trace Events 2 | . 2 . . . Feedback Events . | . . . . . Feedback Blocked . | . . . . . Robot Schematics Acquired . | . . . . . Robots Built . | . . . . . Authchips . | . . . . . Time . | . . . . . Total Robot Build Rating . | . . . . . Part Schematics Acquired . | . . . . . Parts Built . | . . . . . Authchips . | . . . . . Time . | . . . . . Total Part Build Rating . | . . . . . Parts Repaired . | . . . . . Time . | . . . . . Parts Recycled . | . . . . . Recycled Matter . | . . . . . Retrieved Matter . | . . . . . Retrieved Components . | . . . . . Parts Scanalyzed . | . . . . . Part Schematics Acquired . | . . . . . Parts Damaged . | . . . . . Bothacking | -11 -10 -10 -10 -9 ------------ Run | Yrd Mat Min Exi Min Used RIF Installer . | . . . . . Robots Hacked . | . . . . . Non-combat . | . . . . . Combat . | . . . . . Robot Hacks Applied . | . . . . . Relay Couplers Released . | . . . . . Fabnet Peak Effective % . | . . . . . Robots Rewired . | . . . . . Allies Hacked . | . . . . . Hacks Repelled . | . . . . . Allies | -11 -10 -10 -10 -9 -------- Run | Yrd Mat Min Exi Min Total Allies 1 | . . 1 . . Largest Group 1 | . . 1 1 . Highest-Rated Group 31 | . . 31 31 . Highest-Rated Ally 31 | . . 31 31 . Total Orders . | . . . . . Ally Attacks 4 | . . 4 . . Total Damage 40 | . . 40 . . Kills 1 | . . 1 . . Allies Corrupted . | . . . . . Allies Melted . | . . . . . Intel | -11 -10 -10 -10 -9 ------- Run | Yrd Mat Min Exi Min Active Infowar (turns) 245 | 42 203 . . . Seismic 245 | 42 203 . . . Robot Analysis Total . | . . . . . Derelict Logs Recovered 1 | . . 1 . . Drone Launches . | . . . . . Drone Recoveries . | . . . . . Exploration | -11 -10 -10 -10 -9 ------------- Run | Yrd Mat Min Exi Min Turns Passed 3282 | 193 764 1013 1252 60 Spaces Moved 1659 | 93 400 568 587 11 Core 17 | 17 . . . . Treads 1246 | 76 170 402 587 11 Legs 396 | . 230 166 . . Wheels . | . . . . . Hover . | . . . . . Flight . | . . . . . Fastest Speed 50 | 50 120 120 160 240 Average Speed 165 | 139 137 148 205 240 Slowest Speed 240 | 160 160 160 240 240 Overloaded Moves . | . . . . . Propulsion Burnouts . | . . . . . Robots Hopped . | . . . . . Potential Cave-ins . | . . . . . Cave-ins Triggered . | . . . . . Exploration Rate (%) 53 | 5 77 97 80 8 Regions Visited 4 Branch Regions 3 Pre-discovered Areas 1 | . . . 1 . Known Exits Taken . | . . . . . Unknown Exits Taken 4 | 1 1 1 1 . Scrap Searched 1 | . . 1 . . Spaces Dug 7 | . 7 . . . Terrain Destroyed 34 | . 24 10 . . Melee . | . . . . . Projectile . | . . . . . AOE 34 | . 24 10 . . Terrain Rammed . | . . . . . Walls Destroyed . | . . . . . Machines Disabled . | . . . . . Actions | -11 -10 -10 -10 -9 --------- Run | Yrd Mat Min Exi Min Total 1996 | 127 516 690 638 25 Wait 154 | . 45 80 28 1 Move 1655 | 92 399 567 586 11 Hop . | . . . . . Pick Up 32 | 12 6 2 12 . Fast Attach 7 | . 4 3 . . Attach 14 | 7 1 . 4 2 Detach . | . . . . . Swap 8 | . 4 2 2 . Drop 15 | . 3 6 6 . Fire 108 | 16 54 27 . 11 Melee . | . . . . . Ram . | . . . . . Kick . | . . . . . Crush 3 | . . 3 . . Escape Stasis . | . . . . . Rewire . | . . . . . Trap . | . . . . . Miscellaneous . | . . . . . Route ------- -11/Scrapyard -10/Materials (discovered 4 exits: [*Mat x2] / [*Min x2]) -10/Mines (discovered 3 exits: [*Mat x2] / *Exi) -10/Exiles (discovered 2 exits: [*Min x2]) -9/Mines History --------- Turn | Location | Event 10 | -11/Scrapyard | Discovered new exit (range 15) 194 | -11/Scrapyard | Entered Materials 309 | -10/Materials | Build established: Mutant 488 | -10/Materials | Discovered new exit (range 15) 667 | -10/Materials | Discovered new exit (range 16) 777 | -10/Materials | Discovered new exit (range 11) 834 | -10/Materials | Core integrity fell below 50% 868 | -10/Materials | Discovered new exit (range 9) 958 | -10/Materials | Entered Mines 1013 | -10/Mines | Received a Rocket Launcher from a helpful Derelict 1137 | -10/Mines | Discovered new exit (range 6) 1145 | -10/Mines | Joined a pair of Derelicts in attacking an 0b10 outpost 1376 | -10/Mines | Deemed a non-threat by the Exiles lab entrance 1376 | -10/Mines | Discovered new exit (range 5) 1460 | -10/Mines | Build established: Scavenger-Mutant 1536 | -10/Mines | Learned Materials terminal intel 1611 | -10/Mines | Discovered new exit (range 5) 1614 | -10/Mines | Escorted by a lone wolf Derelict 1971 | -10/Mines | Entered Exiles 1971 | -10/Exiles | Accompanied by 1 ally 2000 | -10/Exiles | Discovered new exit (range 15) 2019 | -10/Exiles | Met 8R-AWN 2042 | -10/Exiles | Met EX-HEX 2104 | -10/Exiles | Met EX-DEC 2112 | -10/Exiles | Learned location of Zion (-7) 2138 | -10/Exiles | Met EX-BIN 2160 | -10/Exiles | Aligned with FarCom system 2162 | -10/Exiles | Given EX-Vault access code 2199 | -10/Exiles | Opened EX-Vault 2240 | -10/Exiles | Warned to stay clear of 0b10 Research branches 2491 | -10/Exiles | Visited The Gauntlet 2934 | -10/Exiles | Found Lightpack 2.0 2947 | -10/Exiles | Found Latent Energy Streamer 3190 | -10/Exiles | Discovered new exit (range 14) 3223 | -10/Exiles | Left Exiles lab with Latent Energy Streamer 3223 | -10/Exiles | Entered Mines 3266 | -9/Mines | Core integrity fell below 20% 3283 | -9/Mines | Destroyed by G-34 Mercenary with Small Laser Last Messages --------------- 02692_ Extracted 68 matter. 02694_ Acquired Hcp. Matter Pod. 02702_ Extracted 4 energy. 02934_ Acquired Lightpack 2.0. 02947_ Acquired Latent Energy Streamer. 02951_ Dropped Lightpack 2.0. 03150_ Extracted 4 energy. 03155_ Acquired Lrg. Battery. 03156_ Extracted 4 energy. 03190_ EXIT=FOUND LOCATION=UNKNOWN GOAL=ESCAPE 03223_ Receiving FarCom transmissions... 03224_ T-07 Excavator is excavating. 03248_ Hvy. Assault Rifle destroyed. 03252_ Critical hit (Burn: +37). 03260_ Lgt. Treads destroyed. 03275_ Ion Engine destroyed. 03276_ Lgt. Armor Plating destroyed. 03280_ Lgt. Treads destroyed. Map ----- +----------------------------------------------------+ | | | | | | | | | | | | | | | | | ?????????????????????????????????????????????????? | | ?????????????????????????????????????????????????? | | ???????????????????????????######????????????????? | | ??????????????????????????# ##???????????????? | | ??????????????????????#### #???????????????? | | ?????????????????????## ???????????????? | | ?????????????????????# ????????????????? | | ?????????????????????# #?????????????????? | | ?????????????????????# #?????????????????? | | ?????????????????????# #??????????????????? | | ??????????####??????## #???????????????????? | | ??????????# #?????# #????????????????????? | | ??????????# ##??## #????????????????????? | | ????????????# ### #?????????????????????? | | ?????????????# #??????????????????????? | | ?????????????## ###g#??????????????????????? | | ??????????????# ##?# #??????????????????????? | | ??????????????# ##??#@#??????????????????????? | | ??????????????## ?gg #??????????????????????? | | ???????????????### #######??????????????????????? | | ?????????????????# #????????????????????????????? | | ?????????????????# #????????????????????????????? | | ?????????????????# #????????????????????????????? | | ?????????????????# #????????????????????????????? | | ?????????????????# #????????????????????????????? | | ?????????????????# #????????????????????????????? | | ?????????????????# #????????????????????????????? | | ?????????????????? ????????????????????????????? | | ??????????????????" "????????????????????????????? | | ??????????????????" "????????????????????????????? | | ??????????????????? "????????????????????????????? | | ?????????????????????????????????????????????????? | | ?????????????????????????????????????????????????? | | ?????????????????????????????????????????????????? | | ?????????????????????????????????????????????????? | | ?????????????????????????????????????????????????? | | ?????????????????????????????????????????????????? | | ?????????????????????????????????????????????????? | | ?????????????????????????????????????????????????? | | ?????????????????????????????????????????????????? | | ?????????????????????????????????????????????????? | | ?????????????????????????????????????????????????? | +----------------------------------------------------+ Best States ------------- Heat Dissipation 25 Energy Generation 10 Energy Capacity 250 Matter Stores 300 Matter Capacity 300 Sight Range 16 Terrain Scan Density 10 Armor Coverage 150 Evasion (%) 55 Targeting Accuracy 5 Recoil Reduction 2 Item Schematics ----------------- None Robot Schematics ------------------ None Fabricated ------------ Nothing Repaired ---------- Nothing Alien Tech Used ----------------- None Achievements -------------- None Challenges ------------ None Game ------ Seed ImprovedArchitectStreamer Manual? 0 Play Time 00:17:49 Cumulative 125.6 hours Start 2025.08.11 @ 16:50:04 End 2025.08.11 @ 17:30:32 Sessions 1 Manual Loads 0 Difficulty Rogue Special Mode None Game No. 187 Rogue 187 Adventurer 0 Explorer 0 Win Type - Total 1 Types 1/0/0/0/0/0/0/0/0/0 Lore% 68 Gallery% 61 Achievement% 52 Wizard Run 0 Options --------- Layout 0 ASCII 0 Keyboard 0 Movement Mouse Keybinds 0 Fullscreen 1 Font 16/SmallcapsGlow Map View 75x55 Zoom Use 0% Tactical HUD 1 Map Filters NONE Filters NONE Steam 1 RUN: ab8dd028-67ae-40ff-83ff-90419300c696